bitfinex/quotes_ETHUSD_20250210
["timestamp","ask_amount","ask_price","bid_price","bid_amount"]
[1739172073652,4.54326,2645.0,2644.5,3.32217555]
[1739172073818,3.78095,2644.9,2644.5,3.32217555]
[1739172074243,3.78104,2644.8,2644.5,3.32217555]
[1739172075054,4.54327,2645.0,2644.5,3.32217555]
[1739172075257,3.78089,2644.9,2644.5,3.32217555]
[1739172075766,3.78115,2644.7,2644.5,3.32217555]
[1739172076444,3.78129,2644.6,2644.5,3.32217555]
[1739172076928,3.78101,2644.8,2644.5,3.32217555]
[1739172077270,3.78119,2644.7,2644.6,0.0804072]
[1739172077427,3.78101,2644.8,2644.6,0.0804072]
[1739172077626,7.56213,2644.8,2644.6,0.0804072]
[1739172077863,3.78114,2644.7,2644.6,0.0804072]
[1739172078069,3.78101,2644.8,2644.6,0.0804072]
[1739172078370,3.78114,2644.7,2644.6,0.0804072]
[1739172082327,3.78114,2644.7,2644.4,0.7779]
[1739172082564,3.78143,2644.5,2644.2,4.10007555]
[1739172082775,3.78154,2644.5,2644.2,4.10007555]
[1739172082933,3.78158,2644.4,2644.2,4.10007555]
[1739172084293,3.78154,2644.5,2644.2,4.10007555]
[1739172084790,3.78131,2644.6,2644.2,4.10007555]
[1739172085382,3.78104,2644.8,2644.2,7.88192555]
[1739172085695,3.78104,2644.8,2644.2,4.10007555]
[1739172085996,3.7813,2644.6,2644.2,4.10007555]
[1739172086773,3.78151,2644.5,2644.2,4.10007555]
[1739172087153,0.8295,2645.0,2644.2,4.10007555]
[1739172087358,3.78171,2644.3,2644.2,4.10007555]
[1739172087771,3.78171,2644.3,2644.2,3.32217555]
[1739172087998,3.78171,2644.3,2644.0,0.7779]
[1739172087999,3.782,2644.1,2644.0,0.7779]
[1739172088899,3.782,2644.1,2643.9,3.32217555]
[1739172089065,3.78214,2644.0,2643.9,3.32217555]
[1739172089260,3.782,2644.1,2643.7,0.7779]
[1739172089862,3.78225,2644.0,2643.7,0.7779]
[1739172090072,3.782,2644.1,2643.7,0.7779]
[1739172090494,3.78221,2644.0,2643.7,0.7779]
[1739172090663,3.782,2644.1,2643.7,0.7779]
[1739172090974,7.56414,2644.1,2643.7,0.7779]
[1739172091393,3.782,2644.1,2643.7,0.7779]
[1739172091577,3.78223,2644.0,2643.7,0.7779]
[1739172092267,3.78223,2644.0,2643.8,0.08077606]
[1739172092683,3.782,2644.1,2643.7,0.7779]
[1739172092881,3.782,2644.1,2643.9,0.08077606]
[1739172093082,3.782,2644.1,2643.7,0.7779]
[1739172093283,3.782,2644.1,2644.0,0.08077606]
[1739172093501,3.78217,2644.0,2643.7,0.7779]
[1739172093801,7.56444,2644.0,2643.7,0.7779]
[1739172094101,3.78243,2643.8,2643.6,3.32217555]
[1739172094308,3.78272,2643.6,2643.3,4.10007555]
[1739172094502,3.78259,2643.7,2643.3,4.10007555]
[1739172094706,3.78243,2643.8,2643.3,4.10007555]
[1739172095003,7.56498,2643.8,2643.3,4.10007555]
[1739172095180,7.56495,2643.8,2643.3,4.10007555]
[1739172095381,3.78243,2643.8,2643.3,4.10007555]
[1739172096565,3.78268,2643.7,2643.3,4.10007555]
[1739172096772,3.78259,2643.7,2643.3,4.10007555]
[1739172097078,3.78273,2643.6,2643.3,4.10007555]
[1739172098710,7.56506,2643.8,2643.3,4.10007555]
[1739172099005,3.78249,2643.8,2643.3,7.88314555]
[1739172099821,7.56503,2643.8,2643.3,7.88314555]
[1739172100182,3.78249,2643.8,2643.3,7.88314555]
[1739172101015,7.56503,2643.8,2643.3,7.88314555]
[1739172101715,9.89531,2644.1,2643.6,3.32217555]
[1739172101923,3.78226,2644.0,2643.7,0.7931]
[1739172102282,0.7932,2643.8,2643.3,3.32217555]
[1739172102481,3.78294,2643.5,2643.1,0.7931]
[1739172102886,3.78305,2643.4,2643.1,0.7931]
[1739172103310,3.78294,2643.5,2643.1,0.7931]
[1739172103517,3.78315,2643.3,2643.1,0.7931]
[1739172104021,3.78329,2643.2,2643.1,0.7931]
[1739172104428,3.78343,2643.1,2643.0,3.32217555]
[1739172107324,3.78343,2643.1,2643.0,3.38672362]
[1739172107529,4.57663,2643.1,2643.0,0.06454807]
[1739172107696,8.12663,2643.1,2643.0,8.07e-06]
[1739172108027,3.78469,2642.3,2642.1,4.11527555]
[1739172108230,3.78501,2642.0,2641.9,0.7931]
[1739172108405,3.78501,2642.0,2641.8,3.32217555]
[1739172108727,3.785,2642.1,2641.8,3.32217555]
[1739172109127,3.78472,2642.2,2641.8,3.32217555]
[1739172109335,3.78504,2642.0,2641.8,3.32217555]
[1739172110046,3.78477,2642.2,2641.8,3.32217555]
[1739172110201,3.78493,2642.1,2641.8,3.32217555]
[1739172110401,3.78454,2642.4,2641.8,3.32217555]
[1739172110741,3.78476,2642.2,2641.8,3.32217555]
[1739172110921,3.78497,2642.1,2641.8,3.32217555]
[1739172111125,3.78509,2642.0,2641.8,3.32217555]
[1739172111639,7.56956,2642.2,2641.8,3.32217555]
[1739172111836,3.78498,2642.1,2641.8,3.32217555]
[1739172112006,3.78502,2642.0,2641.8,3.32217555]
[1739172112352,3.78515,2641.9,2641.8,3.32217555]
[1739172112646,3.78502,2642.0,2641.8,3.32217555]
[1739172113002,7.56959,2642.2,2641.8,3.32217555]
[1739172113206,3.78496,2642.1,2641.8,3.32217555]
[1739172113422,3.78476,2642.2,2641.8,3.32217555]
[1739172114449,7.56961,2642.2,2641.8,3.32217555]
[1739172115147,3.78495,2642.1,2641.8,3.32217555]
[1739172115371,3.78501,2642.0,2641.9,0.05680637]
[1739172116356,4.57681,2642.0,2641.9,0.05680637]
[1739172116556,7.57681,2642.0,2641.9,0.05680637]
[1739172116854,7.57681,2642.0,2641.1,3.32217555]
[1739172116855,3.78572,2641.5,2641.1,3.32217555]
[1739172117150,3.78572,2641.5,2641.1,4.11527555]
[1739172117351,3.78601,2641.3,2641.2,0.05453215]
[1739172118323,4.57752,2641.5,2641.2,0.05453215]
[1739172118324,7.57156,2641.5,2641.2,0.05453215]
[1739172118849,7.57155,2641.5,2641.2,0.05453215]
[1739172119048,3.78572,2641.5,2641.2,0.05453215]
[1739172119825,7.57156,2641.5,2641.2,0.05453215]
[1739172120134,3.78593,2641.4,2641.2,0.05453215]
[1739172120520,3.78601,2641.3,2641.2,0.05453215]
[1739172121150,3.78587,2641.4,2641.2,0.05453215]
[1739172121659,0.7918,2641.8,2641.2,0.05453215]
[1739172121660,3.78566,2641.6,2641.2,0.05453215]
[1739172121862,3.78587,2641.4,2641.2,0.05453215]
[1739172122085,3.78601,2641.3,2641.2,0.05453215]
[1739172122232,4.57781,2641.3,2641.2,0.05453215]
[1739172122431,5.12781,2641.3,2641.2,0.05453215]
[1739172122631,3.78675,2640.8,2640.5,4.11527555]
[1739172122831,3.78675,2640.8,2640.5,3.32217555]
[1739172123060,3.78648,2641.0,2640.5,3.32217555]
[1739172123265,3.78698,2640.7,2640.5,3.32217555]
[1739172123444,3.7866,2640.9,2640.5,3.32217555]
[1739172123776,3.78673,2640.8,2640.5,3.32217555]
[1739172124764,3.7866,2640.9,2640.5,3.32217555]
[1739172124962,7.57329,2640.9,2640.5,3.32217555]
[1739172125163,3.7866,2640.9,2640.5,3.32217555]
[1739172125334,7.57329,2640.9,2640.5,3.32217555]
[1739172125658,3.78677,2640.8,2640.5,3.32217555]
[1739172127877,3.7866,2640.9,2640.5,3.32217555]
[1739172128088,3.78682,2640.8,2640.5,3.32217555]
[1739172128951,3.78701,2640.6,2640.5,3.32217555]
[1739172129138,3.78701,2640.6,2640.2,3.32217555]
[1739172129139,3.78739,2640.4,2640.2,3.32217555]
[1739172130107,3.78744,2640.3,2640.2,3.32217555]
[1739172130263,3.78739,2640.4,2640.2,3.32217555]
[1739172130797,3.7871,2640.6,2640.2,3.32217555]
[1739172131176,3.78731,2640.4,2640.2,3.32217555]
[1739172132049,3.7871,2640.6,2640.2,3.32217555]
[1739172132886,3.78717,2640.5,2640.2,3.32217555]
[1739172133114,3.7871,2640.6,2640.2,4.07637555]
[1739172133591,3.78668,2640.9,2640.5,3.32217555]
[1739172133793,3.78638,2641.1,2640.8,3.32217555]
[1739172133994,5.32,2641.2,2640.8,3.32217555]
[1739172133995,3.78615,2641.2,2640.8,3.32217555]
[1739172134151,3.78631,2641.1,2640.8,3.32217555]
[1739172134360,9.8877,2641.5,2640.8,7.10886555]
[1739172134565,9.8877,2641.5,2641.2,3.32217555]
[1739172134566,3.7858,2641.5,2641.2,3.32217555]
[1739172134776,7.57164,2641.5,2641.2,3.32217555]
[1739172135100,3.7858,2641.5,2641.2,3.32217555]
[1739172135456,3.7858,2641.5,2641.2,4.07637555]
[1739172135698,7.57164,2641.5,2641.3,0.05421581]
[1739172135897,3.7858,2641.5,2641.3,0.05421581]
[1739172136162,3.7858,2641.5,2641.2,4.07637555]
[1739172136363,3.7858,2641.5,2641.4,0.05421581]
[1739172136563,7.57165,2641.5,2641.2,4.07637555]
[1739172136777,7.57165,2641.5,2641.4,0.05421581]
[1739172136999,7.57165,2641.5,2641.2,4.07637555]
[1739172137205,3.7859,2641.4,2641.2,3.32217555]
[1739172137417,3.7859,2641.4,2641.3,0.053759]
[1739172137574,3.7858,2641.5,2641.2,3.32217555]
[1739172137899,3.78598,2641.4,2641.3,0.053759]
[1739172138413,3.7861,2641.3,2640.9,3.32217555]
[1739172138566,0.55,2641.0,2640.4,0.7542]
[1739172138764,3.78713,2640.6,2640.3,3.32217555]
[1739172139164,3.78685,2640.8,2640.3,3.32217555]
[1739172139495,4.33648,2641.0,2640.6,3.32217555]
[1739172139806,3.78687,2640.7,2640.6,3.32217555]
[1739172140303,4.56877,2640.7,2640.6,3.32217555]
[1739172140492,3.78687,2640.7,2640.6,3.32217555]
[1739172142401,3.78649,2641.0,2640.6,3.32217555]
[1739172142609,3.78622,2641.2,2640.9,3.32217555]
[1739172142809,3.78604,2641.3,2640.9,3.32217555]
[1739172142965,3.78638,2641.1,2640.9,3.32217555]
[1739172143603,3.78601,2641.3,2640.9,3.32217555]
[1739172143788,7.57212,2641.3,2640.9,3.32217555]
[1739172144450,3.78601,2641.3,2640.9,3.32217555]
[1739172144593,3.78601,2641.3,2641.2,3.32217555]
[1739172145423,0.8187,2641.6,2641.2,3.32217555]
[1739172145639,3.78563,2641.6,2641.3,0.7931]
[1739172145837,3.78573,2641.5,2641.3,0.7931]
[1739172146691,7.57101,2641.7,2641.3,0.7931]
[1739172146901,3.78566,2641.6,2641.3,0.7931]
[1739172147342,3.78544,2641.7,2641.3,0.7931]
[1739172147542,3.78574,2641.5,2641.3,0.7931]
[1739172148105,3.78594,2641.4,2641.2,3.32217555]
[1739172148839,3.78574,2641.5,2641.2,3.32217555]
[1739172149044,3.78483,2642.2,2641.3,0.7931]
[1739172149219,3.78494,2642.1,2642.0,3.32217555]
[1739172149551,0.8187,2642.3,2641.7,3.32217555]
[1739172149552,3.78502,2642.0,2641.7,3.32217555]
[1739172149727,3.78529,2641.8,2641.7,3.32217555]
[1739172150037,3.78502,2642.0,2641.7,3.32217555]
[1739172150248,3.78516,2641.9,2641.7,3.32217555]
[1739172150815,3.78502,2642.0,2641.7,3.32217555]
[1739172151019,3.78528,2641.9,2641.7,3.32217555]
[1739172151444,3.78502,2642.0,2641.7,3.32217555]
[1739172151650,4.60399,2641.8,2641.7,3.32217555]
[1739172151824,3.78575,2641.5,2641.4,3.32217555]
[1739172152144,3.78615,2641.2,2641.1,3.32217555]
[1739172153413,3.78608,2641.3,2641.1,3.32217555]
[1739172153613,7.57188,2641.4,2641.1,3.32217555]
[1739172153814,3.78589,2641.4,2641.1,3.32217555]
[1739172154015,7.57186,2641.4,2641.1,3.32217555]
[1739172154217,3.78589,2641.4,2641.1,3.32217555]
[1739172154417,7.57186,2641.4,2641.1,3.32217555]
[1739172154612,3.78589,2641.4,2641.1,3.32217555]
[1739172155025,7.57188,2641.4,2641.1,3.32217555]
[1739172155225,3.78615,2641.2,2641.1,3.32217555]
[1739172157116,3.78601,2641.3,2641.1,3.32217555]
[1739172157317,3.78615,2641.2,2641.1,3.32217555]
[1739172158353,3.78601,2641.3,2641.1,3.32217555]
[1739172158526,3.78569,2641.6,2641.1,7.10844555]
[1739172158730,3.78567,2641.6,2641.4,3.32217555]
[1739172159432,7.57137,2641.6,2641.4,3.32217555]
[1739172159633,3.78572,2641.5,2641.4,3.32217555]
[1739172160330,3.78615,2641.2,2641.1,3.32217555]
[1739172165828,4.54455,2641.2,2641.1,3.32217555]
[1739172166831,5.09455,2641.2,2641.1,3.32217555]
[1739172167034,3.78658,2640.9,2640.8,3.32217555]
[1739172167333,3.78658,2640.9,2640.8,3.37235466]
[1739172167853,3.78636,2641.1,2640.8,3.37235466]
[1739172168960,7.57277,2641.1,2640.8,3.37235466]
[1739172169158,3.78636,2641.1,2640.8,3.37235466]
[1739172170034,3.78648,2641.0,2640.8,3.37235466]
[1739172170637,7.57303,2641.0,2640.8,3.37235466]
[1739172171134,3.78633,2641.1,2640.8,3.37235466]
[1739172171336,7.57246,2641.2,2640.8,3.37235466]
[1739172171534,3.78622,2641.2,2640.8,3.37235466]
[1739172171749,3.78622,2641.2,2640.9,0.7684]
[1739172172135,3.7863,2641.1,2641.0,0.05050754]
[1739172175383,3.78622,2641.2,2641.0,0.05050754]
[1739172175544,7.57249,2641.2,2641.0,0.05050754]
[1739172175944,3.7863,2641.1,2641.0,0.05050754]
[1739172177787,3.78622,2641.2,2640.8,3.32217555]
[1739172178082,7.57249,2641.2,2641.0,0.05045006]
[1739172178293,7.57249,2641.2,2640.9,0.05047469]
[1739172178461,7.57249,2641.2,2640.8,3.32217555]
[1739172178656,7.57249,2641.2,2641.1,0.05047469]
[1739172179150,3.78642,2641.1,2640.8,3.32217555]
[1739172179350,3.78658,2640.9,2640.8,3.32217555]
[1739172180280,3.78642,2641.1,2640.8,3.32217555]
[1739172180788,3.78658,2640.9,2640.8,3.32217555]
[1739172181085,3.78701,2640.6,2640.5,3.32217555]
[1739172181259,3.78733,2640.4,2640.2,3.32217555]
[1739172182250,3.78733,2640.4,2640.3,0.05054858]
[1739172182694,3.78744,2640.3,2640.2,3.32217555]
[1739172183068,3.78733,2640.4,2640.2,3.32217555]
[1739172184254,3.78707,2640.6,2640.2,3.32217555]
[1739172184456,3.78681,2640.8,2640.5,3.32217555]
[1739172185004,3.78659,2640.9,2640.5,3.32217555]
[1739172185289,9.10633,2641.1,2640.8,3.32217555]
[1739172185668,3.78645,2641.0,2640.8,3.32217555]
[1739172185893,9.10633,2641.1,2640.8,3.32217555]
[1739172186668,12.89273,2641.1,2640.8,3.32217555]
[1739172186993,5.32,2641.1,2640.9,0.7658]
[1739172189363,3.78602,2641.3,2640.9,0.7658]
[1739172189577,3.78602,2641.3,2641.2,3.32217555]
[1739172189785,3.78577,2641.5,2641.2,3.32217555]
[1739172190307,4.56055,2641.7,2641.2,3.32217555]
[1739172190511,4.56055,2641.7,2641.3,0.7658]
[1739172190714,3.78545,2641.7,2641.3,0.7658]
[1739172190895,3.78563,2641.6,2641.3,0.7658]
[1739172191096,3.78572,2641.5,2641.3,0.7658]
[1739172191975,3.78567,2641.6,2641.3,0.7658]
[1739172193111,3.7855,2641.7,2641.2,3.32217555]
[1739172193293,3.78578,2641.5,2641.2,3.32217555]
[1739172194018,3.78552,2641.7,2641.2,7.10830555]
[1739172194215,3.78552,2641.7,2641.2,3.32217555]
[1739172196521,3.78577,2641.5,2641.2,3.32217555]
[1739172196977,7.57106,2641.7,2641.2,3.32217555]
[1739172197177,0.7751,2641.9,2641.3,0.05062258]
[1739172197418,7.57166,2641.5,2641.3,0.05062258]
[1739172197613,3.78582,2641.5,2641.3,0.05062258]
[1739172197834,3.78582,2641.5,2641.2,3.32217555]
[1739172198115,3.78548,2641.7,2641.5,0.7658]
[1739172198317,3.78548,2641.7,2641.6,3.32217555]
[1739172198680,3.78558,2641.6,2641.3,3.32217555]
[1739172200284,7.57128,2641.6,2641.3,3.32217555]
[1739172201018,3.78558,2641.6,2641.3,3.32217555]
[1739172203237,3.78537,2641.8,2641.3,3.32217555]
[1739172203524,3.78545,2641.7,2641.3,3.32217555]
[1739172203815,3.78537,2641.8,2641.3,3.32217555]
[1739172203988,3.7856,2641.6,2641.3,3.32217555]
[1739172205445,3.78575,2641.5,2641.3,3.32217555]
[1739172206304,4.56083,2641.5,2641.0,3.32217555]
[1739172206614,3.78605,2641.3,2641.0,3.32217555]
[1739172207245,3.78617,2641.2,2641.0,3.32217555]
[1739172208114,3.78605,2641.3,2641.0,3.32217555]
[1739172208347,3.7863,2641.1,2641.0,3.32217555]
[1739172208848,3.78618,2641.2,2641.0,3.32217555]
[1739172210262,3.78605,2641.3,2641.0,3.32217555]
[1739172210559,3.7859,2641.4,2641.1,0.7658]
[1739172211750,3.78607,2641.3,2641.1,0.7658]
[1739172212272,3.78607,2641.3,2641.2,0.05026585]
[1739172213174,3.78607,2641.3,2641.0,3.32217555]
[1739172213175,3.7863,2641.1,2641.0,3.32217555]
[1739172214777,3.78656,2641.0,2640.8,0.7658]
[1739172215280,7.57269,2641.1,2640.8,0.7658]
[1739172215833,3.7863,2641.1,2640.8,0.7658]
[1739172216588,3.78623,2641.2,2641.0,3.32217555]
[1739172216787,3.78625,2641.2,2641.0,3.32217555]
[1739172216993,3.7861,2641.3,2641.0,3.32217555]
[1739172217292,3.78581,2641.5,2641.1,0.7594]
[1739172217487,3.78587,2641.4,2641.3,3.32217555]
[1739172217786,5.32,2641.7,2641.0,3.32217555]
[1739172217787,3.78629,2641.2,2641.0,3.32217555]
[1739172218541,3.7863,2641.1,2641.0,3.32217555]
[1739172219685,3.78629,2641.2,2641.0,3.32217555]
[1739172219893,3.7863,2641.1,2641.0,3.32217555]
[1739172222090,3.78629,2641.2,2640.8,0.7594]
[1739172222308,3.78646,2641.0,2640.7,3.32217555]
[1739172222470,3.78673,2640.8,2640.4,4.08157555]
[1739172223795,3.78646,2641.0,2640.5,3.78713]
[1739172223969,3.78646,2641.0,2640.7,3.32217555]
[1739172225462,7.57299,2641.0,2640.7,3.32217555]
[1739172225691,3.78646,2641.0,2640.7,3.32217555]
[1739172227204,3.78646,2641.0,2640.8,0.05056142]
[1739172227401,3.78658,2640.9,2640.8,0.05056142]
[1739172227710,3.78646,2641.0,2640.7,3.32217555]
[1739172227891,3.78646,2641.0,2640.8,0.05063535]
[1739172228399,3.78646,2641.0,2640.9,0.05063535]
[1739172228695,3.78646,2641.0,2640.7,3.32217555]
[1739172228901,3.78621,2641.2,2640.8,0.05063535]
[1739172229098,6.1221,2641.3,2640.9,0.7594]
[1739172229302,9.10609,2641.3,2640.9,0.7594]
[1739172229507,9.10609,2641.3,2641.0,3.32217555]
[1739172229687,3.0,2641.3,2641.0,3.32217555]
[1739172230087,6.78602,2641.3,2641.1,0.05063535]
[1739172232411,0.8021,2641.4,2641.1,0.05063535]
[1739172232703,3.78604,2641.3,2641.1,0.05063535]
[1739172232900,4.58805,2641.4,2641.1,0.05063535]
[1739172234406,3.78595,2641.4,2641.1,0.05063535]
[1739172235507,3.78564,2641.6,2641.3,4.09177555]
[1739172235893,0.8259,2641.7,2641.3,4.09177555]
[1739172236115,3.78573,2641.5,2641.4,0.05063535]
[1739172237823,3.78562,2641.6,2641.4,0.05063535]
[1739172238545,3.78572,2641.5,2641.4,0.05063535]
[1739172239034,3.78562,2641.6,2641.4,0.05063535]
[1739172239206,7.57132,2641.6,2641.4,0.05063535]
[1739172239407,3.78572,2641.5,2641.4,0.05063535]
[1739172240327,3.78562,2641.6,2641.4,0.05063535]
[1739172240533,3.78572,2641.5,2641.4,0.05063535]
[1739172240851,5.32,2641.8,2641.4,0.82023535]
[1739172241034,3.78494,2642.1,2641.7,3.32217555]
[1739172241192,9.10494,2642.1,2641.7,3.32217555]
[1739172241396,5.32,2642.1,2641.8,0.04954322]
[1739172241645,3.78501,2642.0,2641.8,0.04954322]
[1739172241802,5.32,2642.1,2641.7,3.32217555]
[1739172242004,9.10491,2642.1,2641.9,0.04954322]
[1739172242212,9.10491,2642.1,2641.8,0.7696]
[1739172242705,5.32,2642.1,2641.9,0.04954322]
[1739172242904,9.10446,2642.4,2642.0,3.32217555]
[1739172243113,3.78472,2642.2,2642.0,3.32217555]
[1739172243321,3.78486,2642.1,2642.0,3.32217555]
[1739172243940,3.78486,2642.1,2641.7,4.09177555]
[1739172244141,3.78472,2642.2,2641.7,4.09177555]
[1739172244348,3.7854,2641.8,2641.4,4.09177555]
[1739172245629,7.5708,2641.8,2641.4,4.09177555]
[1739172245863,3.78555,2641.7,2641.4,4.09177555]
[1739172246229,0.55,2642.0,2641.4,4.09177555]
[1739172246432,3.78587,2641.4,2641.1,4.09177555]
[1739172246624,3.78587,2641.4,2641.1,3.32217555]
[1739172246954,3.78601,2641.3,2641.1,3.32217555]
[1739172247539,3.78572,2641.5,2641.1,3.32217555]
[1739172247740,3.78593,2641.4,2641.1,3.32217555]
[1739172248619,3.78572,2641.5,2641.1,3.32217555]
[1739172248948,3.78589,2641.4,2641.1,3.32217555]
[1739172250508,3.78615,2641.2,2641.1,3.32217555]
[1739172250852,3.78589,2641.4,2641.1,4.08047555]
[1739172250853,3.7859,2641.4,2641.1,4.08047555]
[1739172251056,3.78602,2641.3,2641.1,4.08047555]
[1739172252026,3.78602,2641.3,2641.1,3.32217555]
[1739172253544,3.7859,2641.4,2641.1,3.32217555]
[1739172253748,3.78601,2641.3,2641.1,3.32217555]
[1739172257256,3.78601,2641.3,2641.2,0.04749486]
[1739172257654,4.59043,2641.5,2641.2,0.04749486]
[1739172258055,3.78597,2641.4,2641.2,0.04749486]
[1739172258262,3.78601,2641.3,2641.2,0.04749486]
[1739172258975,5.32,2641.6,2641.3,0.7586]
[1739172259119,5.32,2641.6,2641.4,3.32217555]
[1739172259453,5.32,2641.6,2641.5,0.04751946]
[1739172260924,3.78501,2642.0,2641.5,0.04751946]
[1739172261139,3.0,2642.0,2641.5,0.04751946]
[1739172261339,4.54689,2642.1,2641.6,0.7586]
[1739172261541,4.54689,2642.1,2641.7,0.04719145]
[1739172261939,3.78515,2641.9,2641.7,0.04719145]
[1739172262264,3.78502,2642.0,2641.7,0.04719145]
[1739172263158,4.54689,2642.1,2641.7,0.04719145]
[1739172263366,3.78489,2642.1,2641.7,0.04719145]
[1739172263532,3.78503,2642.0,2641.7,0.04719145]
[1739172264073,7.56986,2642.1,2641.7,0.04719145]
[1739172264235,7.56985,2642.1,2641.7,0.04719145]
[1739172264440,3.78489,2642.1,2641.7,0.04719145]
[1739172264849,3.78505,2642.0,2641.7,0.04719145]
[1739172267171,7.57014,2642.0,2641.7,0.04719145]
[1739172267366,3.78505,2642.0,2641.7,0.04719145]
[1739172269038,3.78516,2641.9,2641.7,0.04719145]
[1739172269954,3.78488,2642.1,2641.7,0.04719145]
[1739172270155,3.78501,2642.0,2641.7,0.04719145]
[1739172270878,7.57014,2642.0,2641.7,0.04719145]
[1739172271040,5.32,2642.2,2641.7,0.04719145]
[1739172271240,5.32,2642.2,2641.7,3.83249145]
[1739172271441,9.10474,2642.2,2641.7,3.83249145]
[1739172271975,5.32,2642.2,2641.8,4.54378]
[1739172272207,3.78419,2642.6,2642.0,0.7586]
[1739172272363,3.78419,2642.6,2642.0,4.54351]
[1739172272561,7.56848,2642.6,2642.0,4.54348]
[1739172272874,3.78419,2642.6,2642.1,0.04643716]
[1739172273074,7.56842,2642.6,2642.1,0.04643716]
[1739172273280,3.78431,2642.5,2642.1,0.04643716]
[1739172273903,9.10401,2642.7,2642.2,2.19717324]
[1739172274067,5.32,2642.7,2642.2,6.77071324]
[1739172274391,4.60353,2643.0,2642.3,0.04618308]
[1739172274708,4.60353,2643.0,2642.4,0.7889]
[1739172274880,3.78375,2642.9,2642.5,2.19717324]
[1739172275082,3.78375,2642.9,2642.5,2.24335632]
[1739172275270,3.78388,2642.8,2642.5,2.24335632]
[1739172276982,3.78388,2642.8,2642.5,0.04618308]
[1739172277182,3.78415,2642.6,2642.5,0.04618308]
[1739172278167,3.78388,2642.8,2642.5,0.04618308]
[1739172278368,3.78388,2642.8,2642.5,2.24335632]
[1739172279421,3.78365,2643.0,2642.5,2.24335632]
[1739172279569,3.78374,2642.9,2642.5,2.24335632]
[1739172279896,3.78365,2643.0,2642.5,2.24335632]
[1739172279897,3.78386,2642.8,2642.5,2.24335632]
[1739172280769,3.78415,2642.6,2642.5,0.04618308]
[1739172281463,3.78415,2642.6,2642.2,2.99027324]
[1739172281703,3.78415,2642.6,2642.5,0.04361137]
[1739172281876,3.78415,2642.6,2642.2,2.99027324]
[1739172282082,3.78415,2642.6,2642.5,0.04361137]
[1739172282283,3.78444,2642.4,2642.2,2.99027324]
[1739172283481,3.78444,2642.4,2642.2,2.19717324]
[1739172287209,3.78444,2642.4,2642.3,0.04361137]
[1739172287511,3.78423,2642.6,2642.3,0.04361137]
[1739172287811,3.78433,2642.5,2642.4,0.04361137]
[1739172288277,3.78462,2642.3,2642.0,0.7931]
[1739172288471,3.78483,2642.2,2642.0,0.7931]
[1739172288676,3.78483,2642.2,2642.1,0.04361137]
[1739172288908,3.78462,2642.3,2642.1,0.04361137]
[1739172289210,3.78462,2642.3,2641.9,2.19717324]
[1739172289399,3.78462,2642.3,2642.2,0.04375059]
[1739172289721,3.78462,2642.3,2641.9,2.19717324]
[1739172289904,3.78462,2642.3,2642.2,0.04375059]
[1739172290079,3.78462,2642.3,2641.9,2.19717324]
[1739172290276,3.78462,2642.3,2642.2,0.04375059]
[1739172290497,3.7848,2642.2,2641.9,2.19717324]
[1739172290894,3.78477,2642.2,2641.9,2.19717324]
[1739172291509,3.78462,2642.3,2641.9,2.19717324]
[1739172291720,3.78476,2642.2,2641.9,2.19717324]
[1739172292521,3.78462,2642.3,2641.9,2.19717324]
[1739172295016,4.57707,2642.5,2641.9,5.98221324]
[1739172295317,3.78444,2642.4,2641.9,5.98221324]
[1739172295681,3.78444,2642.4,2641.9,2.19717324]
[1739172296217,4.57707,2642.5,2641.9,2.19717324]
[1739172296416,3.78451,2642.4,2641.9,2.19717324]
[1739172296603,3.78437,2642.5,2642.0,0.7847]
[1739172296780,3.78437,2642.5,2642.0,4.56962]
[1739172298014,3.78437,2642.5,2642.0,0.7847]
[1739172298216,6.1127,2642.7,2641.8,0.7847]
[1739172298217,3.78466,2642.3,2641.8,0.7847]
[1739172298461,4.57731,2642.3,2641.8,0.7847]
[1739172299615,3.78461,2642.3,2641.8,4.56993]
[1739172300508,3.78461,2642.3,2641.8,4.56999]
[1739172301118,3.78446,2642.4,2641.9,3.78513]
[1739172301418,7.56897,2642.4,2641.9,3.78513]
[1739172301721,7.569,2642.4,2641.9,3.78513]
[1739172302017,3.78458,2642.3,2641.8,0.7847]
[1739172302225,3.78473,2642.2,2642.0,0.04375059]
[1739172302404,3.78465,2642.3,2641.8,0.7847]
[1739172302604,3.78465,2642.3,2642.1,0.04375059]
[1739172302800,3.78465,2642.3,2641.8,4.56997]
[1739172303322,3.78465,2642.3,2641.9,0.04375059]
[1739172303523,3.78473,2642.2,2641.9,0.04375059]
[1739172305909,3.78446,2642.4,2641.9,0.04375059]
[1739172306308,0.7927,2642.5,2641.9,0.04375059]
[1739172306506,3.78501,2642.0,2641.9,0.04375059]
[1739172306705,3.73887309,2642.0,2641.9,0.04375059]
[1739172306906,3.78517,2641.9,2641.5,0.7847]
[1739172307616,3.78522,2641.9,2641.5,0.7847]
[1739172307822,3.78517,2641.9,2641.5,0.7847]
[1739172308328,3.78535,2641.8,2641.5,0.7847]
[1739172308824,3.78517,2641.9,2641.5,0.7847]
[1739172309215,0.7885,2641.8,2641.2,0.7538]
[1739172309424,3.78589,2641.4,2641.0,2.95097324]
[1739172311641,3.78626,2641.2,2640.7,2.19717324]
[1739172311841,3.78644,2641.0,2640.7,2.19717324]
[1739172313400,3.78637,2641.1,2640.7,2.19717324]
[1739172315345,7.57247,2641.2,2640.7,2.19717324]
[1739172315540,3.78641,2641.1,2640.7,2.19717324]
[1739172315839,3.78645,2641.0,2640.7,2.19717324]
[1739172316037,7.57302,2641.0,2640.7,2.19717324]
[1739172316418,3.78672,2640.9,2640.6,0.7538]
[1739172316625,3.78673,2640.8,2640.4,2.19717324]
[1739172317322,3.78673,2640.8,2640.5,0.04295471]
[1739172317517,0.7885,2641.0,2640.5,0.04295471]
[1739172317739,0.7885,2641.0,2640.5,3.83001471]
[1739172317949,4.57503,2641.0,2640.5,0.04295471]
[1739172318641,3.78653,2641.0,2640.6,0.7538]
[1739172318848,3.78668,2640.9,2640.6,0.7538]
[1739172319011,3.78668,2640.9,2640.7,0.04145652]